[Event "Sheffield Masters 2024"]
[Site "Sheffield"]
[Date "2024.04.11"]
[Round "3.3"]
[White "Pein, Jonathan"]
[Black "Pal, Rohan"]
[Result "1-0"]
[ECO "B48"]
[WhiteElo "2247"]
[BlackElo "2142"]
[Annotator "TA"]
[PlyCount "67"]
[EventDate "2024.04.11"]
[EventType "tourn"]
[EventCountry "ENG"]
[SourceTitle "playchess.com"]
[Source "ChessBase"]
[SourceQuality "1"]
[TimeControl "5400+30"]

{[%evp 17,67,8,22,23,20,17,21,7,10,9,326,305,983,99,93,104,106,56,252,262,566,569,549,552,526,523,509,504,487,359,354,365,362,250,253,183,186,179,311,320,303,317,301,313,338,352,341,347,338,349,402,356]} 1. e4 {[%emt 0:00:02]} c5 {[%emt 0:00:07]} 2. Nf3 {[%emt 0:00:05]} e6 {[%emt 0:00:02]} 3. d4 {[%emt 0:00:08]} cxd4 {[%emt 0:00:04]} 4. Nxd4 {[%emt 0:00:04]} Nc6 {[%emt 0:00:03]} 5. Nc3 {[%emt 0:00:18]} Qc7 {[%emt 0:00:06]} 6. a3 {[%emt 0:02:56]} Nf6 {[%emt 0:04:24]} 7. Be3 {[%emt 0:01:30]} a6 {[%emt 0:01:35]} 8. Be2 {[%emt 0:02:49]} Be7 {[%emt 0:02:41]} 9. O-O {[%emt 0:02:46][%cal Bh1f1,Bf1f3,Bf3g3,Bg3g6,Bg6c6][%mdl 32]} O-O {[%emt 0:01:52]} 10. f4 {[%emt 0:03:49]} d5 {[%emt 0:06:20]} 11. e5 {[%emt 0:09:38] Strongly threatening Nxc6.} Nd7 {[%emt 0:00:46]} 12. Rf3 {[%emt 0:07:37] The position is equal.} b5 {[%emt 0:14:13]} 13. Bd3 {[%emt 0:16:45][%cal Od3h7]} h6 {[%emt 0:06:13][%mdl 8192]} (13... g6 $11 {and Black has nothing to worry.}) 14. Rg3 $18 {[%emt 0:03:22]} Kh8 $2 {[%emt 0:20:19]} (14... Nxd4 15. Qg4 (15. Bxd4 Bc5 $11) 15... Nf5) 15. Nxc6 $2 {[%emt 0:24:51]} (15. Rxg7 $18 {[%cal Od1h5] is the precise move to win. Threatening mate with Qh5!} Kxg7 16. Qg4+ Bg5 17. fxg5 Qxe5 18. Qh3 (18. Nxc6 $2 Qxe3+ 19. Kh1 hxg5 $19) (18. gxh6+ Kh8 $18) 18... Qxe3+ 19. Qxe3) 15... Qxc6 $16 {[%emt 0:00:07]} 16. Qg4 {[%emt 0:03:14]} Rg8 {[%emt 0:00:28]} 17. Qh5 $40 {[%emt 0:01:03][%mdl 128] White attacks. White is much more active.} ({Better is} 17. Ne2 $16) 17... f5 $2 {[%emt 0:09:03]} (17... Bc5 $1 $14) 18. Rg6 $18 {[%emt 0:03:17][%cal Og6h6] Rxh6+! would kill now.} Bf8 $2 {[%emt 0:04:39]} (18... Nf8 {is tougher.}) 19. Qxf5 {[%emt 0:01:34]} exf5 {[%emt 0:03:22]} 20. Rxc6 {[%emt 0:00:01]} g6 {[%emt 0:00:58] Black is weak on the dark squares} 21. Bd4 {[%emt 0:02:00]} Bg7 {[%emt 0:01:32]} 22. Rxg6 {[%emt 0:01:04]} Nf8 {[%emt 0:00:04][%cal Bd7f8,Bf8e6,Be6f4][%mdl 32]} 23. Rd6 {[%emt 0:01:36]} Ne6 {[%emt 0:00:08]} 24. Ne2 {[%emt 0:04:51]} (24. Rxd5 Nxf4 25. Rd6 Ne6 $14) 24... Bf8 {[%emt 0:00:50]} 25. Bc3 {[%emt 0:03:57][%cal Od3f5] Black must now prevent Bxf5!} d4 {[%emt 0:03:08]} 26. Nxd4 {[%emt 0:01:19]} Nxf4 {[%emt 0:02:45]} 27. Nxf5 {[%emt 0:01:29] Threatens to win with e6+.} Bxf5 {[%emt 0:06:38] [#]} (27... Nxd3 {was necessary.} 28. e6+ (28. Nxh6 Nf4 $18) 28... Kh7) 28. e6+ $1 {[%emt 0:01:37]} ({Much less strong is} 28. Bxf5 $6 Ne2+ 29. Kh1 Nxc3 $16 (29... Bxd6 30. exd6+ Nxc3 31. bxc3 $16)) 28... Bg7 {[%emt 0:01:55] [#]} 29. Bxg7+ $1 {[%emt 0:00:14]} ({Not} 29. Bxf5 Bxc3 30. bxc3 Raf8 $11) 29... Rxg7 {[%emt 0:00:04]} 30. Bxf5 {[%emt 0:00:14]} Rf8 {[%emt 0:01:51]} 31. e7 $1 {[%emt 0:01:15]} Rxe7 {[%emt 0:01:26]} 32. Rxh6+ {[%emt 0:00:16]} Kg8 {[%emt 0:00:03]} 33. Bg4 {[%emt 0:00:39]} Rg7 {[%emt 0:01:20]} 34. Be6+ {[%emt 0:00:14] Weighted Error Value: White=0.34/Black=0.65.  Loses game:     	---       	Black=2      Missed win:     	White=1     	---        Mistake:       	White=1     	Black=3      Inaccurate:     	White=1     	---        OK:         	White=9     	Black=11     Best:        	White=1     	Black=2      Strong:       	White=3     	---} 1-0

[Event "Sheffield Masters 2024"]
[Site "Sheffield"]
[Date "2024.04.11"]
[Round "3.4"]
[White "O`Gorman, Tom"]
[Black "Ledger, Andrew J"]
[Result "1/2-1/2"]
[ECO "B12"]
[WhiteElo "2321"]
[BlackElo "2336"]
[Annotator "TA"]
[PlyCount "136"]
[EventDate "2024.04.11"]
[EventType "tourn"]
[EventCountry "ENG"]
[SourceTitle "playchess.com"]
[Source "ChessBase"]
[SourceQuality "1"]
[TimeControl "5400+30"]

{[%evp 49,136,106,80,83,149,85,90,83,91,87,95,76,68,0,0,-24,-7,-45,-43,-52,0,-30,-30,-37,-37,-23,-23,-23,-23,-37,-41,-41,-14,-23,-12,-30,-14,-10,0,0,0,0,0,0,0,0,16,11,16,16,12,0,0,0,0,0,0,0,0,0,0,0,17,0,0,0,0,0,0,0,0,0,0,0,0,0,0,0,0,0,0,0,0,0,0,0,0,0,0]} 1. e4 {[%emt 0:00:14]} c6 {[%emt 0:00:13]} 2. d4 {[%emt 0:00:14]} d5 {[%emt 0:00:06]} 3. e5 {[%emt 0:00:05]} Bf5 {[%emt 0:00:27]} 4. Nf3 {[%emt 0:00:06]} e6 {[%emt 0:00:06]} 5. Be2 {[%emt 0:00:08]} Ne7 {[%emt 0:01:08]} 6. O-O {[%emt 0:00:10]} Nd7 {[%emt 0:00:18]} 7. Nbd2 {[%emt 0:00:40]} h6 {[%emt 0:01:12] B12: Caro-Kann: Advance Variation.} 8. Nb3 {[%emt 0:00:37]} Qc7 {[%emt 0:02:53]} 9. Bd2 {[%emt 0:02:38]} a5 {[%emt 0:08:19]} 10. a4 {[%emt 0:03:13]} Bh7 {[%emt 0:06:08]} 11. Rc1 {[%emt 0:05:30]} Qb6 {[%emt 0:06:55]} 12. Bc3 {[%emt 0:09:46]} Ng6 {[%emt 0:09:15]} 13. Bd3 $146 {[%emt 0:28:34]} ({Predecessor:} 13. Qd2 Bb4 14. Bxb4 Qxb4 15. Qxb4 axb4 16. a5 f6 17. exf6 gxf6 18. Ra1 Kf7 19. Ra4 {0-1 Burri,Q (2397)-Cantin,L (2184) Avoine op 32nd 2017 (8)}) 13... Bb4 {[%emt 0:02:09]} 14. Bxb4 {[%emt 0:01:00]} Qxb4 {[%emt 0:01:00]} 15. c3 {[%emt 0:00:50]} Qe7 {[%emt 0:03:31]} 16. Ne1 {[%emt 0:13:14]} O-O {[%emt 0:02:44]} 17. f4 {[%emt 0:00:39]} Nh4 {[%emt 0:08:21]} 18. Bxh7+ {[%emt 0:14:12]} Kxh7 {[%emt 0:00:05]} 19. g3 {[%emt 0:02:35]} Ng6 {[%emt 0:04:45]} 20. Ng2 {[%emt 0:02:55]} f6 {[%emt 0:05:43]} 21. Qd3 {[%emt 0:02:09]} f5 {[%emt 0:04:41]} 22. Ne3 {[%emt 0:00:12]} Qf7 {[%emt 0:05:55]} 23. c4 {[%emt 0:03:24]} dxc4 {[%emt 0:04:39]} 24. Nxc4 {[%emt 0:00:14]} Qe7 {[%emt 0:01:20]} 25. Nd6 {[%emt 0:05:13]} (25. Nbxa5 b5 26. Nxc6 (26. axb5 $2 cxb5 27. Ne3 Rxa5 $19) 26... bxc4 27. Qxc4 Qe8) 25... Nb6 {[%emt 0:01:19]} 26. Qd2 {[%emt 0:01:04]} Nc8 {[%emt 0:02:47]} (26... Nxa4 $142 27. Nxa5 Rfb8) 27. Nxc8 {[%emt 0:00:35]} ({White should play} 27. Nxa5 Nxd6 28. exd6 Qxd6 29. Nxb7) 27... Rfxc8 $16 {[%emt 0:00:06]} 28. Nxa5 {[%emt 0:00:26]} Rd8 {[%emt 0:00:34]} 29. Qc3 {[%emt 0:00:46]} Qd7 {[%emt 0:01:12]} 30. Rfd1 {[%emt 0:00:52]} Ne7 {[%emt 0:06:09]} 31. Nc4 {[%emt 0:00:19]} (31. Nb3 $14) 31... Rxa4 $11 {[%emt 0:01:43]} 32. Qb3 {[%emt 0:01:41]} (32. Nb6 $5 Nd5 33. Nxd7 Nxc3 34. Nc5 Nxd1 (34... Raxd4 35. Rxd4 Ne2+ 36. Kf2 $11) 35. Nxa4 Rxd4 36. Nc5 $16) 32... Ra6 {[%emt 0:02:13]} 33. Nb6 {[%emt 0:01:50]} Qc7 {[%emt 0:02:05]} 34. Na4 {[%emt 0:00:26]} b6 {[%emt 0:00:51]} (34... Nd5 $15) 35. Nc3 {[%emt 0:00:21]} (35. Qxe6 $5 Rxa4 36. d5 $11) 35... Qd7 {[%emt 0:00:41]} 36. Qc4 {[%emt 0:00:28]} b5 {[%emt 0:02:01]} 37. Qb3 {[%emt 0:00:18]} Kg8 {[%emt 0:01:21]} 38. Rc2 {[%emt 0:00:41]} Kf7 {[%emt 0:00:08]} 39. Ne2 {[%emt 0:00:54]} Rda8 {[%emt 0:01:10]} 40. Rcc1 {[%emt 0:00:34]} Qd5 {[%emt 0:00:20]} 41. Qxd5 {[%emt 0:00:18]} Nxd5 {[%emt 0:00:13]} 42. Kf2 {[%emt 0:00:14]} Ke7 {[%emt 0:00:18]} 43. Nc3 {[%emt 0:00:30]} Nxc3 {[%emt 0:01:00]} 44. Rxc3 {[%emt 0:00:02]} Kd7 {[%emt 0:00:09]} 45. g4 {[%emt 0:00:44]} Ra2 {[%emt 0:01:30]} 46. Rd2 {[%emt 0:00:03]} fxg4 {[%emt 0:01:01]} 47. Rg3 {[%emt 0:00:01]} Ke7 {[%emt 0:00:21]} 48. Rxg4 {[%emt 0:00:06]} Kf7 {[%emt 0:00:03]} 49. Ke3 {[%emt 0:00:34]} g6 {[%emt 0:01:24]} 50. Rg1 {[%emt 0:00:18]} (50. Rdg2 $5 Rg8 $8 51. Rc2 $14) 50... Ra1 {[%emt 0:00:31]} 51. Rg3 {[%emt 0:00:31]} Re1+ {[%emt 0:00:17]} 52. Kf2 {[%emt 0:01:12]} Raa1 {[%emt 0:00:45]} 53. Rc3 {[%emt 0:01:02]} Rec1 {[%emt 0:01:09]} 54. Rdc2 {[%emt 0:00:29]} Rxc2+ {[%emt 0:00:06]} 55. Rxc2 {[%emt 0:00:04]} Ra6 {[%emt 0:00:38]} 56. Kf3 {[%emt 0:00:22]} Ra4 {[%emt 0:01:52]} 57. Ke3 {[%emt 0:00:57]} Rb4 {[%emt 0:00:05]} 58. h4 {[%emt 0:01:05]} h5 {[%emt 0:00:40]} 59. Rd2 {[%emt 0:00:57]} Rb3+ {[%emt 0:00:13]} 60. Ke4 {[%emt 0:00:11]} Rh3 {[%emt 0:00:40]} 61. Rc2 {[%emt 0:00:33]} Rxh4 {[%emt 0:00:11]} 62. Ke3 $1 {[%emt 0:00:41]} ({Much weaker is} 62. Rxc6 g5 63. Rc7+ Kg6 $15) 62... Rh3+ {[%emt 0:00:19]} 63. Ke4 {[%emt 0:00:05]} Rb3 {[%emt 0:00:55]} 64. Rxc6 {[%emt 0:00:06]} Rxb2 {[%emt 0:00:03]} 65. Rc7+ {[%emt 0:00:24]} Kf8 {[%emt 0:00:21]} 66. Rc8+ {[%emt 0:00:18]} Kf7 {[%emt 0:01:15]} 67. Rc7+ {[%emt 0:00:04]} Kf8 {[%emt 0:00:50]} 68. Rc8+ {[%emt 0:00:05]} Kf7 {[%emt 0:00:16]} 1/2-1/2

[Event "Sheffield Masters 2024"]
[Site "Sheffield"]
[Date "2024.04.11"]
[Round "3.5"]
[White "Chow, Samuel"]
[Black "Gourlay, Iain"]
[Result "1/2-1/2"]
[ECO "D37"]
[WhiteElo "2350"]
[BlackElo "2307"]
[Annotator "TA"]
[PlyCount "82"]
[EventDate "2024.04.11"]
[EventType "tourn"]
[EventCountry "ENG"]
[SourceTitle "playchess.com"]
[Source "ChessBase"]
[SourceQuality "1"]
[TimeControl "5400+30"]

{[%evp 19,82,27,27,22,22,14,20,17,29,28,18,4,8,11,0,0,0,0,0,-15,0,-47,-35,-38,-38,-39,-38,-37,-40,-38,-18,-50,-13,-14,-13,-9,-16,-14,-15,-33,-32,-36,-33,-31,-37,-41,-41,-41,-41,-41,-41,-37,-28,-29,-11,-12,-19,-17,-16,-12,-9,-9,-9,-10,0]} 1. d4 {[%emt 0:00:03]} d5 {[%emt 0:08:19]} 2. c4 {[%emt 0:00:23]} e6 {[%emt 0:00:16]} 3. Nf3 {[%emt 0:00:22]} Nf6 {[%emt 0:00:16]} 4. Nc3 {[%emt 0:00:14]} Be7 {[%emt 0:00:33]} 5. Bf4 {[%emt 0:00:20]} O-O {[%emt 0:00:24]} 6. e3 {[%emt 0:00:14]} c5 {[%emt 0:00:34]} 7. dxc5 {[%emt 0:00:32]} Bxc5 {[%emt 0:00:16]} 8. a3 {[%emt 0:00:26]} Nc6 {[%emt 0:00:31]} 9. Qc2 {[%emt 0:00:25]} Qa5 {[%emt 0:00:41]} 10. Rd1 {[%emt 0:00:35]} Be7 {[%emt 0:00:16]} 11. Be2 {[%emt 0:02:15]} Ne4 {[%emt 0:01:49]} 12. cxd5 {[%emt 0:04:50]} Nxc3 {[%emt 0:00:18]} 13. bxc3 {[%emt 0:00:30]} exd5 {[%emt 0:00:26]} 14. O-O {[%emt 0:00:31]} h6 {[%emt 0:01:57]} 15. c4 {[%emt 0:02:50]} Be6 {[%emt 0:10:34]} 16. cxd5 {[%emt 0:01:25]} Bxd5 {[%emt 0:00:07]} 17. Bc7 {[%emt 0:00:28]} Qxc7 {[%emt 0:01:55]} 18. Rxd5 {[%emt 0:00:07]} Bxa3 {[%emt 0:08:50]} 19. Nd4 {[%emt 0:20:43]} Bd6 {[%emt 0:10:36] [#] Threatens to win with ...Nxd4.} 20. Rc1 {[%emt 0:12:20]} (20. Nxc6 $11 bxc6 21. Rh5) 20... Nxd4 {[%emt 0:05:32]} ({Don't play} 20... Bxh2+ $6 21. Kf1 $11) 21. Rxd4 {[%emt 0:01:05]} Bxh2+ {[%emt 0:01:38]} 22. Kf1 {[%emt 0:00:54]} Qxc2 {[%emt 0:00:23]} 23. Rxc2 {[%emt 0:00:05]} Be5 {[%emt 0:00:22]} 24. Rd7 {[%emt 0:02:29]} a5 {[%emt 0:02:02]} 25. f4 {[%emt 0:02:02]} Bb8 {[%emt 0:13:45]} 26. Rxb7 {[%emt 0:07:07]} Ra7 {[%emt 0:05:53]} 27. Rcb2 {[%emt 0:03:48]} Rxb7 {[%emt 0:00:41]} 28. Rxb7 $11 {[%emt 0:00:05][%mdl 4096] Endgame. KRB-KRB} Rc8 {[%emt 0:01:26]} 29. Bd1 {[%emt 0:03:26]} Bd6 {[%emt 0:03:05]} 30. Ke2 {[%emt 0:07:20]} Rc7 {[%emt 0:06:45]} 31. Rb6 {[%emt 0:01:16]} Bc5 {[%emt 0:01:09]} 32. Rb5 {[%emt 0:00:33]} Bb4 {[%emt 0:00:35]} 33. Bb3 {[%emt 0:01:16]} g6 {[%emt 0:01:36]} 34. g4 {[%emt 0:01:49]} Kg7 {[%emt 0:01:36]} 35. e4 {[%emt 0:00:32]} Ra7 {[%emt 0:02:11]} 36. e5 {[%emt 0:02:57]} h5 {[%emt 0:01:57]} 37. gxh5 {[%emt 0:05:19] The position is equal.} gxh5 {[%emt 0:00:07]} 38. e6 {[%emt 0:01:52]} fxe6 {[%emt 0:00:32]} 39. Rxh5 {[%emt 0:00:27]} Ra6 {[%emt 0:02:38]} 40. f5 {[%emt 0:02:36]} exf5 {[%emt 0:00:37]} 41. Rxf5 {[%emt 0:00:05]} a4 {[%emt 0:01:07] Weighted Error Value: White=0.05 (flawless) /Black=0.04 (flawless) .  Mistake:       	White=1     	---        Inaccurate:     	White=1     	Black=1      OK:         	White=13    	Black=18     Best:        	White=1     	Black=1} 1/2-1/2